[Event "FIDE WYCC Girls U14 2023"]
[Site "Montesilvano"]
[Date "2023.11.15"]
[Round "3.13"]
[White "Kaliakhmet, Elnaz"]
[Black "Field, Lila Quinn"]
[Result "1-0"]
[ECO "E07"]
[WhiteElo "1933"]
[BlackElo "1616"]
[Annotator "NA"]
[PlyCount "109"]
[EventDate "2023.11.13"]
[EventType "swiss"]
[EventCountry "ITA"]
[SourceTitle "playchess.com"]
[Source "ChessBase"]
[SourceQuality "1"]
[TimeControl "40/5400+30:1800+30"]

1. d4 {[%emt 0:00:03]} d5 {[%emt 0:00:10]} 2. c4 {[%emt 0:00:18]} e6 {[%emt 0:00:09]} 3. Nf3 {[%emt 0:00:30]} Nf6 {[%emt 0:00:22]} 4. Nc3 {[%emt 0:00:04]} Be7 {[%emt 0:00:14]} 5. g3 {[%emt 0:00:32]} O-O {[%emt 0:00:12]} 6. Bg2 {[%emt 0:00:22]} c6 {[%emt 0:00:13]} 7. O-O {[%emt 0:00:36]} Nbd7 {[%emt 0:00:38]} 8. Qd3 {[%emt 0:01:12]} b6 {[%emt 0:01:24]} 9. e4 {[%emt 0:01:55]} Ba6 {[%emt 0:02:24]} 10. b3 {[%emt 0:00:26]} dxe4 {[%emt 0:05:32]} 11. Nxe4 {[%emt 0:00:46]} b5 {[%emt 0:05:29]} 12. Nxf6+ {[%emt 0:09:54]} Bxf6 {[%emt 0:00:42]} 13. Ba3 {[%emt 0:08:57]} bxc4 {[%emt 0:06:18]} 14. bxc4 {[%emt 0:00:06]} c5 {[%emt 0:04:32]} 15. Rab1 {[%emt 0:26:31]} Rc8 {[%emt 0:16:59]} 16. Rfd1 {[%emt 0:10:53]} Qa5 {[%emt 0:10:18]} 17. dxc5 {[%emt 0:06:50]} Nxc5 {[%emt 0:02:47]} 18. Qe3 {[%emt 0:00:06]} Rfe8 {[%emt 0:06:40]} 19. Bb4 {[%emt 0:01:00]} Qb6 {[%emt 0:19:36]} 20. a4 {[%emt 0:13:24]} Red8 {[%emt 0:05:33]} 21. Rxd8+ {[%emt 0:07:00]} Bxd8 {[%emt 0:00:50]} 22. a5 {[%emt 0:01:12]} Qb8 {[%emt 0:04:08]} 23. Ne5 {[%emt 0:01:50]} Nb7 {[%emt 0:03:50]} 24. Nc6 {[%emt 0:04:17]} Rxc6 {[%emt 0:00:37]} 25. Bxc6 {[%emt 0:00:04]} Nxa5 {[%emt 0:01:01]} 26. Qc5 {[%emt 0:03:02]} Bc7 {[%emt 0:00:12]} 27. Bb5 {[%emt 0:01:32]} Nb7 {[%emt 0:00:50]} 28. Qc6 {[%emt 0:00:27]} Bxb5 {[%emt 0:00:13]} 29. Qxb5 {[%emt 0:00:16]} Qa8 {[%emt 0:02:21]} 30. Qc6 {[%emt 0:00:12]} Qc8 {[%emt 0:00:44]} 31. Ba3 {[%emt 0:00:59]} Na5 {[%emt 0:00:24]} 32. Qc5 {[%emt 0:00:15]} Qd8 {[%emt 0:00:10]} 33. Qb4 {[%emt 0:00:56]} h6 {[%emt 0:00:22]} 34. Qc3 {[%emt 0:00:26]} Qa8 {[%emt 0:00:47]} 35. Bb2 {[%emt 0:00:15]} f6 {[%emt 0:00:17]} 36. Ba3 {[%emt 0:00:46]} Qe4 {[%emt 0:00:37]} 37. Rc1 {[%emt 0:00:17]} h5 {[%emt 0:00:30]} 38. Qe3 {[%emt 0:00:34]} Qxe3 {[%emt 0:00:47]} 39. fxe3 {[%emt 0:00:03]} Nc6 {[%emt 0:00:29]} 40. Bc5 {[%emt 0:00:00]} Kf7 {[%emt 0:00:00]} 41. Rb1 {[%emt 0:01:36]} Ke8 {[%emt 0:01:47]} 42. Bxa7 {[%emt 0:02:43]} Nxa7 {[%emt 0:01:45]} 43. Rb7 {[%emt 0:00:04]} Kd8 {[%emt 0:01:07]} 44. Rxa7 {[%emt 0:00:05]} Bb6 {[%emt 0:00:39]} 45. Rxg7 {[%emt 0:00:08]} Bxe3+ {[%emt 0:00:19]} 46. Kg2 {[%emt 0:00:03]} Bd4 {[%emt 0:03:53]} 47. Kf3 {[%emt 0:00:18]} f5 {[%emt 0:01:52]} 48. Rh7 {[%emt 0:00:03]} Bc3 {[%emt 0:03:27]} 49. h4 {[%emt 0:00:35]} Bd2 {[%emt 0:00:49]} 50. Ke2 {[%emt 0:00:41]} Bc3 {[%emt 0:00:24]} 51. Rxh5 {[%emt 0:01:16]} Ke7 {[%emt 0:01:45]} 52. Rh7+ {[%emt 0:00:13]} Kf6 {[%emt 0:00:18]} 53. c5 {[%emt 0:00:29]} Be5 {[%emt 0:00:35]} 54. Kf3 {[%emt 0:00:25]} Kg6 {[%emt 0:00:13]} 55. Rb7 {[%emt 0:00:07]} 1-0

[Event "FIDE WYCC Girls U14 2023"]
[Site "Montesilvano"]
[Date "2023.11.15"]
[Round "3.14"]
[White "Saparya Ghosh"]
[Black "Sosovickova, Martina"]
[Result "1-0"]
[ECO "D11"]
[WhiteElo "1659"]
[BlackElo "1877"]
[Annotator "NA"]
[PlyCount "55"]
[EventDate "2023.11.13"]
[EventType "swiss"]
[EventCountry "ITA"]
[SourceTitle "playchess.com"]
[Source "ChessBase"]
[SourceQuality "1"]
[TimeControl "40/5400+30:1800+30"]

1. d4 {[%emt 0:00:09]} d5 {[%emt 0:00:08]} 2. c4 {[%emt 0:00:08]} c6 {[%emt 0:00:10]} 3. Nf3 {[%emt 0:00:06]} Nf6 {[%emt 0:00:17]} 4. Qb3 {[%emt 0:00:05]} e6 {[%emt 0:00:26]} 5. Bg5 {[%emt 0:00:10]} Nbd7 {[%emt 0:00:16]} 6. Nc3 {[%emt 0:00:09]} Be7 {[%emt 0:00:27]} 7. e3 {[%emt 0:00:31]} O-O {[%emt 0:01:20]} 8. Bd3 {[%emt 0:00:21]} Re8 {[%emt 0:02:06]} 9. O-O {[%emt 0:00:20]} Qc7 {[%emt 0:03:24]} 10. Rac1 {[%emt 0:02:15]} dxc4 {[%emt 0:08:15]} 11. Bxc4 {[%emt 0:18:53]} Nb6 {[%emt 0:05:49]} 12. Bd3 {[%emt 0:02:48]} Nfd5 {[%emt 0:05:15]} 13. Bxe7 {[%emt 0:11:50]} Qxe7 {[%emt 0:00:37]} 14. Bb1 {[%emt 0:01:57]} Nd7 {[%emt 0:06:40]} 15. Qc2 {[%emt 0:06:18]} g6 {[%emt 0:02:53]} 16. Ne5 {[%emt 0:19:51]} Nxe5 {[%emt 0:04:49]} 17. dxe5 {[%emt 0:04:33]} Bd7 {[%emt 0:03:09]} 18. Ne4 {[%emt 0:01:16]} b6 {[%emt 0:02:14]} 19. Rfd1 {[%emt 0:02:02]} c5 {[%emt 0:04:19]} 20. Nf6+ {[%emt 0:01:53]} Nxf6 {[%emt 0:00:59]} 21. exf6 {[%emt 0:00:04]} Qd8 {[%emt 0:00:14]} 22. Qe4 {[%emt 0:02:29]} Rc8 {[%emt 0:04:27]} 23. Rd6 {[%emt 0:04:56]} Rc7 {[%emt 0:07:09]} 24. Rcd1 {[%emt 0:01:38]} h6 {[%emt 0:03:23]} 25. Qd3 {[%emt 0:01:35]} c4 {[%emt 0:00:26]} 26. Qd4 {[%emt 0:01:12]} e5 {[%emt 0:01:04]} 27. Qd2 {[%emt 0:00:23]} Re6 {[%emt 0:02:39]} 28. Rxd7 {[%emt 0:00:16]} 1-0

[Event "FIDE WYCC Girls U14 2023"]
[Site "Montesilvano"]
[Date "2023.11.15"]
[Round "3.15"]
[White "Huseynova, Lala"]
[Black "Agamyradova, Mahri"]
[Result "0-1"]
[ECO "C07"]
[WhiteElo "1867"]
[BlackElo "1652"]
[Annotator "NA"]
[PlyCount "78"]
[EventDate "2023.11.13"]
[EventType "swiss"]
[EventCountry "ITA"]
[SourceTitle "playchess.com"]
[Source "ChessBase"]
[SourceQuality "1"]
[TimeControl "40/5400+30:1800+30"]

1. e4 {[%emt 0:00:01]} e6 {[%emt 0:00:06]} 2. d4 {[%emt 0:00:12]} d5 {[%emt 0:00:05]} 3. Nd2 {[%emt 0:00:07]} c5 {[%emt 0:00:06]} 4. Ngf3 {[%emt 0:00:19]} cxd4 {[%emt 0:00:07]} 5. Nxd4 {[%emt 0:00:06]} Nc6 {[%emt 0:00:06]} 6. Bb5 {[%emt 0:00:25]} Bd7 {[%emt 0:00:05]} 7. Nxc6 {[%emt 0:00:47]} bxc6 {[%emt 0:00:06]} 8. Bd3 {[%emt 0:00:03]} Bd6 {[%emt 0:00:21]} 9. Nf3 {[%emt 0:00:44]} Qc7 {[%emt 0:11:29]} 10. Qe2 {[%emt 0:09:15]} e5 {[%emt 0:06:00]} 11. O-O {[%emt 0:04:28]} Ne7 {[%emt 0:01:37]} 12. c3 {[%emt 0:11:39]} f5 {[%emt 0:05:04]} 13. Nh4 {[%emt 0:16:09]} fxe4 {[%emt 0:02:38]} 14. Bc2 {[%emt 0:02:45]} O-O {[%emt 0:00:44]} 15. c4 {[%emt 0:02:12]} h6 {[%emt 0:05:32]} 16. Qh5 {[%emt 0:05:08]} Nf5 {[%emt 0:01:29]} 17. Bb3 {[%emt 0:05:39]} Be8 {[%emt 0:07:21]} 18. Qg4 {[%emt 0:00:32]} h5 {[%emt 0:06:51]} 19. Qh3 {[%emt 0:01:18]} Nxh4 {[%emt 0:00:09]} 20. Qxh4 {[%emt 0:00:45]} Be7 {[%emt 0:00:28]} 21. Qg3 {[%emt 0:03:47]} Qd6 {[%emt 0:05:21]} 22. Rd1 {[%emt 0:04:05]} Bf7 {[%emt 0:04:04]} 23. Bc2 {[%emt 0:12:44]} Qf6 {[%emt 0:03:16]} 24. Qe3 {[%emt 0:04:12]} Be6 {[%emt 0:01:48]} 25. cxd5 {[%emt 0:04:04]} cxd5 {[%emt 0:00:38]} 26. Bb3 {[%emt 0:00:07]} Kh8 {[%emt 0:26:55]} 27. h3 {[%emt 0:04:24]} d4 {[%emt 0:02:54]} 28. Qe2 {[%emt 0:00:33]} Bxb3 {[%emt 0:00:40]} 29. axb3 {[%emt 0:00:05]} h4 {[%emt 0:00:34]} 30. Bd2 {[%emt 0:03:50]} Bc5 {[%emt 0:01:24]} 31. Qxe4 {[%emt 0:00:41]} Qxf2+ {[%emt 0:00:11]} 32. Kh1 {[%emt 0:00:02]} Qg3 {[%emt 0:00:25]} 33. Rac1 {[%emt 0:02:24]} Bd6 {[%emt 0:01:19]} 34. Rc6 {[%emt 0:01:29]} Rad8 {[%emt 0:00:20]} 35. Ba5 {[%emt 0:00:27]} Rd7 {[%emt 0:00:26]} 36. Qe2 {[%emt 0:01:14]} Rdf7 {[%emt 0:05:27]} 37. Rxd6 {[%emt 0:01:03]} Rf2 {[%emt 0:00:07]} 38. Qh5+ {[%emt 0:00:04]} Kg8 {[%emt 0:00:01]} 39. Rg1 {[%emt 0:00:27]} Rxg2 {[%emt 0:00:01]} 0-1

[Event "FIDE WYCC Girls U14 2023"]
[Site "Montesilvano"]
[Date "2023.11.15"]
[Round "3.16"]
[White "Wojs, Alicja"]
[Black "Avetisyan, Ani"]
[Result "1/2-1/2"]
[ECO "B15"]
[WhiteElo "1630"]
[BlackElo "1770"]
[Annotator "NA"]
[PlyCount "93"]
[EventDate "2023.11.13"]
[EventType "swiss"]
[EventCountry "ITA"]
[SourceTitle "playchess.com"]
[Source "ChessBase"]
[SourceQuality "1"]
[TimeControl "40/5400+30:1800+30"]

1. e4 {[%emt 0:00:01]} c6 {[%emt 0:00:07]} 2. d4 {[%emt 0:00:05]} d5 {[%emt 0:00:06]} 3. Nd2 {[%emt 0:00:18]} dxe4 {[%emt 0:00:14]} 4. Nxe4 {[%emt 0:00:20]} Nf6 {[%emt 0:00:06]} 5. Nxf6+ {[%emt 0:00:22]} exf6 {[%emt 0:00:05]} 6. Bc4 {[%emt 0:00:55]} Bd6 {[%emt 0:03:37]} 7. Ne2 {[%emt 0:03:01]} O-O {[%emt 0:03:31]} 8. Bf4 {[%emt 0:00:39]} Bg4 {[%emt 0:04:47]} 9. Bxd6 {[%emt 0:03:39]} Qxd6 {[%emt 0:00:14]} 10. O-O {[%emt 0:03:50]} Nd7 {[%emt 0:02:34]} 11. Qd2 {[%emt 0:06:39]} Rfe8 {[%emt 0:06:47]} 12. Ng3 {[%emt 0:04:43]} Rad8 {[%emt 0:07:19]} 13. c3 {[%emt 0:06:17]} Nf8 {[%emt 0:10:30]} 14. Bd3 {[%emt 0:03:54]} Ng6 {[%emt 0:03:33]} 15. f4 {[%emt 0:11:18]} Bc8 {[%emt 0:04:16]} 16. Bxg6 hxg6 {[%emt 0:03:23]} 17. Rae1 {[%emt 0:01:57]} Qd5 {[%emt 0:07:40]} 18. Rxe8+ {[%emt 0:04:48]} Rxe8 {[%emt 0:00:06]} 19. Re1 {[%emt 0:00:27]} Rxe1+ {[%emt 0:02:05]} 20. Qxe1 {[%emt 0:00:08]} Be6 {[%emt 0:00:02]} 21. b3 {[%emt 0:02:16]} c5 {[%emt 0:09:17]} 22. Qe3 {[%emt 0:05:04]} cxd4 {[%emt 0:05:47]} 23. cxd4 {[%emt 0:02:53]} Qa5 {[%emt 0:03:59]} 24. Qf2 {[%emt 0:01:13]} Qc3 {[%emt 0:03:23]} 25. h3 {[%emt 0:03:29]} Bd5 {[%emt 0:03:50]} 26. Nf1 {[%emt 0:05:10]} b5 {[%emt 0:03:28]} 27. Qe3 {[%emt 0:08:07]} b4 {[%emt 0:02:17]} 28. Qe8+ {[%emt 0:07:10]} Kh7 {[%emt 0:00:02]} 29. Qe3 {[%emt 0:00:14]} Kg8 {[%emt 0:00:59]} 30. Qe8+ {[%emt 0:00:05]} Kh7 {[%emt 0:00:06]} 31. Qe3 {[%emt 0:00:06]} Qa1 {[%emt 0:02:57]} 32. Qd2 {[%emt 0:02:02]} a5 {[%emt 0:03:43]} 33. Kf2 {[%emt 0:01:58]} Bxb3 {[%emt 0:05:03]} 34. axb3 {[%emt 0:00:41]} a4 {[%emt 0:00:01]} 35. Ne3 {[%emt 0:04:53]} a3 {[%emt 0:00:37]} 36. Nc2 {[%emt 0:00:21]} Qb2 {[%emt 0:00:49]} 37. Qd3 {[%emt 0:00:32]} a2 {[%emt 0:00:43]} 38. Kf3 {[%emt 0:00:58]} a1=Q {[%emt 0:00:50]} 39. Nxa1 {[%emt 0:00:10]} Qxa1 {[%emt 0:00:01]} 40. Ke3 {[%emt 0:00:00]} Qe1+ {[%emt 0:00:00]} 41. Kf3 {[%emt 0:00:48]} Qc1 {[%emt 0:02:46]} 42. d5 {[%emt 0:01:04]} Kg8 {[%emt 0:02:03]} 43. d6 {[%emt 0:02:47]} Qc6+ {[%emt 0:03:42]} 44. Kf2 {[%emt 0:01:46]} Qb6+ {[%emt 0:04:58]} 45. Kf3 {[%emt 0:02:21]} Kf8 {[%emt 0:18:03]} 46. Qd5 {[%emt 0:04:33]} f5 {[%emt 0:02:27]} 47. d7 1/2-1/2

[Event "FIDE WYCC Girls U14 2023"]
[Site "Montesilvano"]
[Date "2023.11.15"]
[Round "3.17"]
[White "Khamdamova, Afruza"]
[Black "Alemanova, Yasmina"]
[Result "1-0"]
[ECO "C07"]
[WhiteElo "2199"]
[BlackElo "1570"]
[Annotator "ChessBase"]
[PlyCount "81"]
[EventDate "2023.11.13"]
[EventType "swiss"]
[EventCountry "ITA"]
[SourceTitle "playchess.com"]
[Source "ChessBase"]
[SourceQuality "1"]
[TimeControl "40/5400+30:1800+30"]

1. e4 {[%emt 0:00:03]} e6 {[%emt 0:00:04]} 2. d4 {[%emt 0:00:09]} d5 {[%emt 0:00:03]} 3. Nd2 {[%emt 0:00:07]} c5 {[%emt 0:00:05]} 4. exd5 {[%emt 0:00:12]} Qxd5 {[%emt 0:00:04]} 5. Ngf3 {[%emt 0:00:06]} cxd4 {[%emt 0:00:04]} 6. Bc4 {[%emt 0:00:05]} Qd7 {[%emt 0:00:03]} 7. O-O {[%emt 0:00:09]} Nf6 {[%emt 0:00:03]} 8. Nb3 {[%emt 0:00:15]} Nc6 {[%emt 0:00:03]} 9. Nbxd4 {[%emt 0:00:09]} Nxd4 {[%emt 0:00:05]} 10. Nxd4 {[%emt 0:00:06]} a6 {[%emt 0:00:03]} 11. Bb3 {[%emt 0:00:43]} Be7 {[%emt 0:00:09]} 12. Re1 {[%emt 0:01:14]} b5 {[%emt 0:00:10]} 13. a4 {[%emt 0:08:01]} Bb7 {[%emt 0:01:26]} 14. Bg5 {[%emt 0:05:04]} h6 {[%emt 0:01:59]} 15. Bh4 {[%emt 0:01:08]} Rd8 {[%emt 0:00:21]} 16. c3 {[%emt 0:00:42]} O-O {[%emt 0:01:28]} 17. axb5 {[%emt 0:01:40]} axb5 {[%emt 0:00:09]} 18. Qe2 {[%emt 0:02:02]} b4 {[%emt 0:03:20]} 19. Nxe6 {[%emt 0:13:05]} Qc6 {[%emt 0:01:27]} 20. Qf1 {[%emt 0:01:43]} Ne4 {[%emt 0:19:27]} 21. Rxe4 {[%emt 0:28:25]} Qxe4 {[%emt 0:00:48]} 22. Bxe7 {[%emt 0:00:04]} fxe6 {[%emt 0:08:50]} 23. Bxd8 {[%emt 0:04:03]} Rxd8 {[%emt 0:01:07]} 24. Re1 {[%emt 0:00:16]} Qf4 {[%emt 0:00:26]} 25. Rxe6 {[%emt 0:01:48]} Kh8 {[%emt 0:00:08]} 26. Qe1 {[%emt 0:02:19]} Rf8 {[%emt 0:02:01]} 27. Re8 {[%emt 0:02:18]} bxc3 {[%emt 0:00:13]} 28. bxc3 {[%emt 0:00:36]} Bc6 {[%emt 0:00:15]} 29. Rxf8+ {[%emt 0:00:14]} Qxf8 {[%emt 0:00:03]} 30. h3 {[%emt 0:07:16]} Qa8 {[%emt 0:01:23]} 31. Qf1 {[%emt 0:00:27]} Qb7 {[%emt 0:02:42]} 32. Qc4 {[%emt 0:00:55]} Qa8 {[%emt 0:00:14]} 33. f3 {[%emt 0:02:29]} Qa7+ {[%emt 0:01:02]} 34. Kh1 {[%emt 0:00:06]} Qa1+ {[%emt 0:00:07]} 35. Kh2 {[%emt 0:00:06]} Qa8 {[%emt 0:00:05]} 36. Qf4 {[%emt 0:00:34]} Bd7 {[%emt 0:02:04]} 37. Qd6 {[%emt 0:01:18]} Qc8 {[%emt 0:01:06]} 38. Bd5 {[%emt 0:00:21]} Bf5 {[%emt 0:01:45]} 39. c4 {[%emt 0:00:04]} Kh7 {[%emt 0:00:19]} 40. c5 {[%emt 0:00:00]} Qe8 {[%emt 0:00:00]} 41. c6 {[%emt 0:01:16]} 1-0

[Event "FIDE WYCC Girls U14 2023"]
[Site "Montesilvano"]
[Date "2023.11.15"]
[Round "3.18"]
[White "Suyamin, Bonjoure Fille"]
[Black "Smietanska, Wiktoria"]
[Result "1-0"]
[ECO "D43"]
[WhiteElo "1570"]
[BlackElo "2009"]
[Annotator "NA"]
[PlyCount "119"]
[EventDate "2023.11.13"]
[EventType "swiss"]
[EventCountry "ITA"]
[SourceTitle "playchess.com"]
[Source "ChessBase"]
[SourceQuality "1"]
[TimeControl "40/5400+30:1800+30"]

1. d4 {[%emt 0:00:04]} Nf6 {[%emt 0:00:08]} 2. Nf3 {[%emt 0:00:08]} e6 {[%emt 0:00:15]} 3. c4 {[%emt 0:00:11]} d5 {[%emt 0:00:14]} 4. Nc3 {[%emt 0:00:19]} c6 {[%emt 0:01:45]} 5. g3 {[%emt 0:00:29]} Nbd7 {[%emt 0:02:48]} 6. Bg2 {[%emt 0:01:36]} Bd6 {[%emt 0:08:29]} 7. O-O {[%emt 0:00:46]} O-O {[%emt 0:00:56]} 8. Nd2 {[%emt 0:00:46]} Be7 {[%emt 0:08:05]} 9. Re1 {[%emt 0:01:41]} Nb6 {[%emt 0:02:38]} 10. b3 {[%emt 0:03:36]} dxc4 {[%emt 0:04:05]} 11. Nxc4 {[%emt 0:00:22]} Nbd5 {[%emt 0:08:16]} 12. Bb2 {[%emt 0:02:03]} Qc7 {[%emt 0:07:25]} 13. e4 {[%emt 0:08:33]} Nxc3 {[%emt 0:05:02]} 14. Bxc3 {[%emt 0:00:07]} Rd8 {[%emt 0:00:16]} 15. Qe2 {[%emt 0:00:51]} b6 {[%emt 0:01:11]} 16. Rac1 {[%emt 0:01:21]} Bb7 {[%emt 0:07:15]} 17. Qb2 {[%emt 0:02:58]} Rac8 {[%emt 0:03:23]} 18. Red1 {[%emt 0:05:33]} Qd7 {[%emt 0:05:14]} 19. Rd2 {[%emt 0:09:14]} Qe8 {[%emt 0:02:55]} 20. Rcd1 {[%emt 0:01:08]} Qf8 {[%emt 0:05:04]} 21. b4 {[%emt 0:07:15]} Rb8 {[%emt 0:09:09]} 22. a3 {[%emt 0:01:29]} Rd7 {[%emt 0:08:17]} 23. Ne5 {[%emt 0:05:43]} Rc7 {[%emt 0:00:13]} 24. h3 {[%emt 0:07:12]} Rbc8 {[%emt 0:00:58]} 25. Re1 {[%emt 0:04:30]} Ne8 {[%emt 0:01:09]} 26. Re3 {[%emt 0:05:18]} Nd6 {[%emt 0:00:35]} 27. Qb3 {[%emt 0:00:52]} Ba6 {[%emt 0:05:01]} 28. Rd1 {[%emt 0:01:11]} Bf6 {[%emt 0:01:14]} 29. f4 {[%emt 0:06:21]} Be7 {[%emt 0:00:25]} 30. Kh2 {[%emt 0:01:42]} Qe8 {[%emt 0:00:43]} 31. g4 {[%emt 0:02:30]} c5 {[%emt 0:01:08]} 32. dxc5 {[%emt 0:01:32]} bxc5 {[%emt 0:00:07]} 33. bxc5 {[%emt 0:01:44]} Rxc5 {[%emt 0:00:27]} 34. Bb4 {[%emt 0:00:55]} Rb5 {[%emt 0:00:52]} 35. Qa4 {[%emt 0:00:54]} Rb6 {[%emt 0:00:19]} 36. Qxe8+ {[%emt 0:00:28]} Rxe8 {[%emt 0:00:07]} 37. Bc5 {[%emt 0:01:53]} Nc4 {[%emt 0:02:12]} 38. Bxb6 {[%emt 0:00:13]} axb6 {[%emt 0:00:34]} 39. Nxc4 {[%emt 0:00:16]} Bxc4 {[%emt 0:00:02]} 40. Rc3 {[%emt 0:00:00]} Be2 {[%emt 0:00:00]} 41. Rd7 {[%emt 0:01:09]} Bc5 {[%emt 0:01:01]} 42. e5 {[%emt 0:01:22]} Bb5 {[%emt 0:00:23]} 43. Rb7 {[%emt 0:01:05]} Be2 {[%emt 0:01:36]} 44. a4 {[%emt 0:01:13]} h5 {[%emt 0:06:31]} 45. Bf3 {[%emt 0:03:14]} Bxf3 {[%emt 0:02:13]} 46. Rxf3 {[%emt 0:00:07]} Rd8 {[%emt 0:01:21]} 47. Rc3 {[%emt 0:01:50]} Rd5 {[%emt 0:04:09]} 48. Kg3 {[%emt 0:01:42]} hxg4 {[%emt 0:00:11]} 49. hxg4 {[%emt 0:00:05]} g5 {[%emt 0:00:21]} 50. Rf3 {[%emt 0:00:50]} gxf4+ {[%emt 0:01:39]} 51. Rxf4 {[%emt 0:00:27]} f5 {[%emt 0:06:23]} 52. gxf5 {[%emt 0:02:21]} Rxe5 {[%emt 0:00:09]} 53. f6 {[%emt 0:02:51]} Re3+ {[%emt 0:01:40]} 54. Kh4 {[%emt 0:00:58]} Re1 {[%emt 0:01:01]} 55. f7+ {[%emt 0:02:02]} Kf8 {[%emt 0:00:05]} 56. Rb8+ {[%emt 0:00:12]} Kg7 {[%emt 0:00:39]} 57. f8=Q+ {[%emt 0:02:02]} Bxf8 {[%emt 0:00:04]} 58. Rbxf8 {[%emt 0:00:20]} e5 {[%emt 0:00:07]} 59. R8f7+ {[%emt 0:01:24]} Kg8 {[%emt 0:00:12]} 60. R4f5 {[%emt 0:00:31]} 1-0

[Event "FIDE WYCC Girls U14 2023"]
[Site "Montesilvano"]
[Date "2023.11.15"]
[Round "3.19"]
[White "Jiang, Tianyu"]
[Black "Chasouraki, Chrysi"]
[Result "0-1"]
[ECO "B40"]
[WhiteElo "1917"]
[BlackElo "1559"]
[Annotator "ChessBase"]
[PlyCount "160"]
[EventDate "2023.11.13"]
[EventType "swiss"]
[EventCountry "ITA"]
[SourceTitle "playchess.com"]
[Source "ChessBase"]
[SourceQuality "1"]
[TimeControl "40/5400+30:1800+30"]

1. e4 {[%emt 0:00:04]} c5 {[%emt 0:00:03]} 2. Nf3 {[%emt 0:00:10]} e6 {[%emt 0:00:05]} 3. b3 {[%emt 0:00:06]} b6 {[%emt 0:00:05]} 4. d4 {[%emt 0:15:26]} cxd4 {[%emt 0:00:07]} 5. Nxd4 {[%emt 0:00:06]} Bb7 {[%emt 0:00:52]} 6. Nd2 {[%emt 0:00:56]} Bc5 {[%emt 0:09:18]} 7. Bb2 {[%emt 0:12:49]} Nf6 {[%emt 0:10:52]} 8. Bd3 {[%emt 0:12:06]} Nc6 {[%emt 0:11:00]} 9. Nxc6 {[%emt 0:05:21]} Bxc6 {[%emt 0:01:32]} 10. Qe2 {[%emt 0:17:54]} Rb8 {[%emt 0:17:06]} 11. e5 {[%emt 0:09:19]} Nd5 {[%emt 0:01:38]} 12. Qg4 {[%emt 0:01:19]} g6 {[%emt 0:01:29]} 13. Ne4 {[%emt 0:06:59]} Be7 {[%emt 0:03:41]} 14. Nd6+ {[%emt 0:01:38]} Bxd6 {[%emt 0:00:39]} 15. exd6 {[%emt 0:00:04]} Rg8 {[%emt 0:02:10]} 16. h4 {[%emt 0:07:57]} b5 {[%emt 0:10:04]} 17. Kf1 {[%emt 0:05:33]} b4 {[%emt 0:04:15]} 18. Kg1 {[%emt 0:01:02]} h5 {[%emt 0:04:15]} 19. Qg3 {[%emt 0:00:17]} f5 {[%emt 0:04:59]} 20. Bc4 {[%emt 0:00:45]} Nf6 {[%emt 0:02:53]} 21. Qf4 {[%emt 0:00:35]} Kf7 {[%emt 0:00:54]} 22. Rh3 {[%emt 0:00:24]} Bd5 {[%emt 0:03:09]} 23. Bd3 {[%emt 0:00:29]} Be4 {[%emt 0:02:24]} 24. Re1 {[%emt 0:00:17]} Bxd3 {[%emt 0:03:39]} 25. Rxd3 {[%emt 0:00:04]} Ng4 {[%emt 0:01:24]} 26. Rh3 {[%emt 0:01:00]} Rc8 {[%emt 0:01:05]} 27. Re2 {[%emt 0:00:16]} Qb6 {[%emt 0:01:37]} 28. Rd3 {[%emt 0:00:37]} a5 {[%emt 0:01:09]} 29. Bd4 {[%emt 0:00:40]} Qd8 {[%emt 0:00:49]} 30. f3 {[%emt 0:00:25]} Nf6 {[%emt 0:00:18]} 31. Bb2 {[%emt 0:00:30]} Rc6 {[%emt 0:01:45]} 32. Kh2 {[%emt 0:00:27]} Kg7 {[%emt 0:00:35]} 33. Qe5 {[%emt 0:00:49]} Kf7 {[%emt 0:00:26]} 34. Qf4 {[%emt 0:00:20]} Kg7 {[%emt 0:00:16]} 35. g4 {[%emt 0:00:41]} hxg4 {[%emt 0:00:43]} 36. fxg4 {[%emt 0:00:08]} Kf7 {[%emt 0:00:11]} 37. g5 {[%emt 0:00:51]} Nh5 {[%emt 0:00:54]} 38. Qe5 {[%emt 0:00:31]} Qb6 {[%emt 0:00:28]} 39. Rdd2 {[%emt 0:00:32]} Rgc8 {[%emt 0:00:28]} 40. Rf2 {[%emt 0:00:00]} Rc5 {[%emt 0:00:00]} 41. Qe3 {[%emt 0:23:28]} Qc6 {[%emt 0:08:49]} 42. Be5 {[%emt 0:02:38]} a4 {[%emt 0:04:24]} 43. Bb2 {[%emt 0:02:48]} Ra8 {[%emt 0:08:08]} 44. Qd4 {[%emt 0:02:30]} axb3 {[%emt 0:04:10]} 45. axb3 {[%emt 0:00:19]} Rb8 {[%emt 0:00:43]} 46. Qe3 {[%emt 0:00:32]} Rbb5 {[%emt 0:03:09]} 47. Rfe2 {[%emt 0:01:37]} Ra5 {[%emt 0:02:01]} 48. Qd4 {[%emt 0:00:22]} Rab5 {[%emt 0:00:41]} 49. Qh8 {[%emt 0:00:21]} Rc3 {[%emt 0:01:18]} 50. Bxc3 {[%emt 0:00:41]} bxc3 {[%emt 0:00:11]} 51. Rd3 {[%emt 0:00:35]} Rb4 {[%emt 0:01:48]} 52. Qh7+ {[%emt 0:00:31]} Ng7 {[%emt 0:00:12]} 53. Qh8 {[%emt 0:00:36]} Re4 {[%emt 0:00:56]} 54. Rg2 {[%emt 0:00:22]} Qc5 {[%emt 0:00:48]} 55. Kh3 {[%emt 0:00:38]} Qb4 {[%emt 0:00:46]} 56. Rf3 {[%emt 0:00:31]} Rg4 {[%emt 0:00:30]} 57. Rfg3 {[%emt 0:00:22]} Rd4 {[%emt 0:00:27]} 58. Rg1 {[%emt 0:00:31]} Rxd6 {[%emt 0:00:28]} 59. Ra1 {[%emt 0:00:33]} Qf4 {[%emt 0:00:40]} 60. Qh7 {[%emt 0:00:35]} Rd4 {[%emt 0:00:26]} 61. Qh8 {[%emt 0:00:22]} Rd2 {[%emt 0:00:26]} 62. Rh1 {[%emt 0:00:40]} Rxc2 {[%emt 0:00:30]} 63. Qd8 {[%emt 0:00:06]} Qd4 {[%emt 0:00:33]} 64. Qf6+ {[%emt 0:00:53]} Qxf6 {[%emt 0:00:06]} 65. gxf6 {[%emt 0:00:02]} Nh5 {[%emt 0:00:37]} 66. Rf3 {[%emt 0:00:06]} Kxf6 {[%emt 0:00:42]} 67. Rd1 {[%emt 0:01:21]} d5 {[%emt 0:00:23]} 68. b4 {[%emt 0:00:28]} Rb2 {[%emt 0:00:31]} 69. Rc1 {[%emt 0:00:30]} d4 {[%emt 0:00:19]} 70. Rff1 {[%emt 0:00:27]} Rxb4 {[%emt 0:00:10]} 71. Kg2 {[%emt 0:00:24]} Rb2+ {[%emt 0:01:03]} 72. Kh3 {[%emt 0:00:39]} c2 {[%emt 0:00:36]} 73. Rf2 {[%emt 0:00:19]} d3 {[%emt 0:00:14]} 74. Kg2 {[%emt 0:00:35]} Rb1 {[%emt 0:00:13]} 75. Rcxc2 {[%emt 0:00:34]} dxc2 {[%emt 0:00:07]} 76. Rxc2 {[%emt 0:00:01]} Rb4 {[%emt 0:00:19]} 77. Kh3 {[%emt 0:00:07]} Rb3+ {[%emt 0:00:08]} 78. Kh2 {[%emt 0:00:50]} Rg3 {[%emt 0:00:29]} 79. Rc8 {[%emt 0:01:01]} Rg4 {[%emt 0:00:20]} 80. Kh3 {[%emt 0:00:27]} Nf4+ {[%emt 0:00:24]} 0-1